[Event "SRB-chT 1st League Women 2018"]
[Site "Zajecar"]
[Date "2018.09.08"]
[Round "9"]
[White "Velikic, Adela"]
[Black "Manakova, Maria"]
[Result "1/2-1/2"]
[ECO "C00"]
[WhiteElo "2339"]
[BlackElo "2242"]
[Annotator "NA"]
[PlyCount "72"]
[EventDate "2018.08.31"]
[EventType "team-tourn"]
[EventCountry "SRB"]
[SourceTitle "playchess.com"]
[Source "ChessBase"]
[SourceQuality "1"]
[TimeControl "40/5400+30:1800+30"]

1. e4 {[%emt 0:00:00]} e6 {[%emt 0:00:19]} 2. d3 {[%emt 0:00:00]} c5 {[%emt 0:01:34]} 3. Nf3 {[%emt 0:00:00]} Nc6 {[%emt 0:00:09]} 4. g3 {[%emt 0:00:03]} g6 {[%emt 0:03:40]} 5. Bg2 {[%emt 0:00:09]} Bg7 {[%emt 0:00:05]} 6. O-O {[%emt 0:00:19]} Nge7 {[%emt 0:00:30]} 7. Re1 {[%emt 0:02:25]} d6 {[%emt 0:00:40]} 8. c3 {[%emt 0:02:32]} O-O {[%emt 0:01:02]} 9. Be3 {[%emt 0:08:11]} h6 {[%emt 0:02:16] A04: Unusual lines after 1 Nf3 and King's Indian Attack} 10. d4 {[%emt 0:16:36]} cxd4 {[%emt 0:01:03]} 11. Nxd4 {[%emt 0:02:30]} Ne5 {[%emt 0:05:29]} 12. Na3 {[%emt 0:05:58]} d5 $146 {[%emt 0:17:17]} ({Predecessor:} 12... a6 13. Qe2 Nd7 14. Rad1 Qc7 15. c4 Kh7 16. Rc1 Rb8 {½-½ (59) Dueball,J (2445)-Dubeck,M Germany 1980}) 13. f4 {[%emt 0:11:02]} N5c6 {[%emt 0:01:12]} 14. Nxc6 {[%emt 0:03:32]} bxc6 {[%emt 0:00:44]} 15. Bc5 {[%emt 0:02:53]} Rb8 {[%emt 0:08:38]} 16. Rb1 {[%emt 0:06:16]} Rb7 {[%emt 0:00:10]} 17. Qa4 {[%emt 0:05:09]} Bd7 {[%emt 0:13:31]} 18. Kh1 {[%emt 0:03:21]} Re8 {[%emt 0:00:24]} 19. Bf1 {[%emt 0:11:06]} e5 {[%emt 0:08:03]} 20. Ba6 {[%emt 0:04:29]} Rb8 {[%emt 0:01:38]} 21. fxe5 {[%emt 0:04:01]} Bxe5 {[%emt 0:00:41]} 22. exd5 {[%emt 0:05:55]} (22. Bf1 $11) 22... cxd5 {[%emt 0:11:46]} 23. Qh4 {[%emt 0:01:18]} Nf5 {[%emt 0:07:08]} (23... g5 $17 24. Qxh6 Nf5) 24. Qxd8 $11 {[%emt 0:00:05]} Rbxd8 {[%emt 0:00:03]} 25. Bb7 {[%emt 0:00:34]} d4 {[%emt 0:04:46]} 26. Nc4 {[%emt 0:02:09]} Bf6 {[%emt 0:01:08]} 27. g4 {[%emt 0:01:59]} Nh4 {[%emt 0:00:33]} 28. Rxe8+ {[%emt 0:00:43]} Rxe8 {[%emt 0:00:24]} 29. Rf1 {[%emt 0:00:41]} Bxg4 {[%emt 0:07:17]} 30. Nd6 {[%emt 0:00:02]} Re2 {[%emt 0:00:34]} 31. h3 {[%emt 0:00:53]} d3 {[%emt 0:01:36]} 32. Ne4 {[%emt 0:00:30]} Be5 {[%emt 0:00:28]} 33. hxg4 {[%emt 0:00:29]} Rh2+ {[%emt 0:00:21]} 34. Kg1 {[%emt 0:00:01]} Rg2+ {[%emt 0:00:10]} 35. Kh1 {[%emt 0:00:02]} Rh2+ {[%emt 0:00:34]} 36. Kg1 {[%emt 0:00:01]} Rg2+ {[%emt 0:00:16]} 1/2-1/2

[Event "SRB-chT 1st League Women 2018"]
[Site "Zajecar"]
[Date "2018.09.08"]
[Round "9"]
[White "Voiska, Margarita"]
[Black "Ambartsumova, Karina"]
[Result "1-0"]
[ECO "B20"]
[WhiteElo "2241"]
[BlackElo "2386"]
[Annotator "ChessBase"]
[PlyCount "67"]
[EventDate "2018.08.31"]
[EventType "team-tourn"]
[EventCountry "SRB"]
[SourceTitle "playchess.com"]
[Source "ChessBase"]
[SourceQuality "1"]
[TimeControl "40/5400+30:1800+30"]

1. e4 {[%emt 0:01:04]} c5 {[%emt 0:01:04]} 2. c4 {[%emt 0:00:22]} Nc6 {[%emt 0:03:17]} 3. Nc3 g6 {[%emt 0:06:05]} 4. g3 {[%emt 0:02:02]} Bg7 {[%emt 0:09:30]} 5. Bg2 {[%emt 0:01:48]} e6 6. d3 {[%emt 0:00:12]} Nge7 {[%emt 0:01:25]} 7. Nge2 {[%emt 0:00:42]} O-O {[%emt 0:07:38]} 8. O-O {[%emt 0:01:38]} d6 {[%emt 0:07:38]} 9. a3 {[%emt 0:05:10]} a5 {[%emt 0:08:27]} 10. Rb1 {[%emt 0:02:12]} Nd4 {[%emt 0:00:20]} 11. Nxd4 {[%emt 0:00:13]} cxd4 {[%emt 0:08:24]} 12. Nb5 {[%emt 0:18:27]} Bd7 {[%emt 0:04:29]} 13. Nxd6 Qb6 14. e5 {[%emt 0:01:22]} Bxe5 {[%emt 0:01:06]} 15. Ne4 f5 {[%emt 0:03:00]} 16. Nd2 {[%emt 0:00:51]} Bg7 {[%emt 0:10:56]} 17. f4 {[%emt 0:18:23]} Nc6 18. b4 axb4 {[%emt 0:02:43]} 19. axb4 {[%emt 0:00:46]} Qc7 {[%emt 0:01:49]} 20. b5 {[%emt 0:01:10]} Nd8 {[%emt 0:05:35]} 21. Nf3 {[%emt 0:09:42]} Nf7 22. Bb2 Qd6 {[%emt 0:03:34]} 23. Ra1 {[%emt 0:07:25]} Rfe8 {[%emt 0:04:30]} 24. Re1 {[%emt 0:07:46]} Rad8 {[%emt 0:03:14]} 25. Qb3 Bc8 26. Ba3 {[%emt 0:07:47]} Qc7 {[%emt 0:00:52]} 27. c5 {[%emt 0:02:08]} Kh8 28. Bb4 b6 {[%emt 0:03:05]} 29. cxb6 {[%emt 0:02:57]} Qb8 30. Nd2 {[%emt 0:02:12]} Qxb6 {[%emt 0:03:05]} 31. Ba5 Qb8 {[%emt 0:00:31]} 32. Bxd8 {[%emt 0:00:41]} Nxd8 {[%emt 0:00:03]} 33. Ra8 {[%emt 0:01:16]} Qc7 {[%emt 0:00:09]} 34. b6 1-0

[Event "SRB-chT 1st League Women 2018"]
[Site "Zajecar"]
[Date "2018.09.08"]
[Round "9"]
[White "Benderac, Ana"]
[Black "Rakic, Teodora"]
[Result "1-0"]
[ECO "B06"]
[WhiteElo "2239"]
[BlackElo "2052"]
[Annotator "ChessBase"]
[PlyCount "65"]
[EventDate "2018.08.31"]
[EventType "team-tourn"]
[EventCountry "SRB"]
[SourceTitle "playchess.com"]
[Source "ChessBase"]
[SourceQuality "1"]
[TimeControl "40/5400+30:1800+30"]

1. e4 {[%emt 0:00:00]} g6 {[%emt 0:00:00]} 2. d4 {[%emt 0:00:00]} Bg7 {[%emt 0:00:00]} 3. Nc3 {[%emt 0:00:00]} d6 {[%emt 0:00:00]} 4. Be3 {[%emt 0:00:09]} a6 {[%emt 0:00:00]} 5. Qd2 {[%emt 0:01:27]} b5 {[%emt 0:00:14]} 6. O-O-O {[%emt 0:01:57]} Nd7 {[%emt 0:00:30]} 7. f3 {[%emt 0:03:02]} Bb7 {[%emt 0:01:58]} 8. g4 {[%emt 0:00:58]} Nb6 {[%emt 0:06:54]} 9. Nh3 {[%emt 0:03:54]} c6 {[%emt 0:12:10]} 10. Nf4 {[%emt 0:03:09]} Nc4 {[%emt 0:15:17]} 11. Bxc4 {[%emt 0:00:24]} bxc4 {[%emt 0:00:01]} 12. Nb1 {[%emt 0:06:07]} a5 {[%emt 0:06:17]} 13. g5 {[%emt 0:06:35]} h5 {[%emt 0:15:28]} 14. d5 {[%emt 0:13:59]} c5 {[%emt 0:05:01]} 15. c3 {[%emt 0:02:06]} Qb6 {[%emt 0:02:32]} 16. Na3 {[%emt 0:02:07]} Ba6 {[%emt 0:01:14]} 17. Rhf1 {[%emt 0:08:38]} Rb8 {[%emt 0:09:59]} 18. Rf2 {[%emt 0:02:44]} Kd7 {[%emt 0:03:58]} 19. Qc2 {[%emt 0:05:38]} Kc7 {[%emt 0:06:23]} 20. Ng2 {[%emt 0:09:21]} Kb7 {[%emt 0:08:28]} 21. Qa4 {[%emt 0:02:48]} Ka7 {[%emt 0:01:51]} 22. Nxc4 {[%emt 0:03:01]} Bxc4 {[%emt 0:00:53]} 23. Qxc4 {[%emt 0:00:06]} Qb7 {[%emt 0:01:07]} 24. f4 {[%emt 0:02:33]} Qd7 {[%emt 0:00:28]} 25. Ne1 {[%emt 0:01:45]} e6 {[%emt 0:01:08]} 26. dxe6 {[%emt 0:00:49]} Qxe6 {[%emt 0:00:22]} 27. Qxe6 {[%emt 0:00:32]} fxe6 {[%emt 0:00:02]} 28. Rxd6 {[%emt 0:00:15]} Rb7 {[%emt 0:01:07]} 29. Bxc5+ {[%emt 0:00:23]} Kb8 {[%emt 0:00:02]} 30. Rxe6 {[%emt 0:00:36]} Kc8 {[%emt 0:00:31]} 31. Rd2 {[%emt 0:02:27]} Rc7 {[%emt 0:00:01]} 32. Ba3 {[%emt 0:00:16]} Kb7 {[%emt 0:00:03]} 33. Kc2 {[%emt 0:00:59]} 1-0

[Event "SRB-chT 1st League Women 2018"]
[Site "Zajecar"]
[Date "2018.09.09"]
[Round "10"]
[White "Kovacevic, Radmila"]
[Black "Salimova, Nurgyul"]
[Result "0-1"]
[ECO "C22"]
[WhiteElo "2144"]
[BlackElo "2352"]
[Annotator "ChessBase"]
[PlyCount "109"]
[EventDate "2018.08.31"]
[EventType "team-tourn"]
[EventCountry "SRB"]
[SourceTitle "playchess.com"]
[Source "ChessBase"]
[SourceQuality "1"]
[TimeControl "40/5400+30:1800+30"]

1. e4 {[%emt 0:00:00]} e5 {[%emt 0:00:00]} 2. d4 {[%emt 0:00:39]} exd4 {[%emt 0:00:00]} 3. Qxd4 {[%emt 0:00:13]} Nc6 {[%emt 0:00:19]} 4. Qe3 {[%emt 0:00:07]} Nf6 {[%emt 0:00:44]} 5. Bd2 {[%emt 0:00:16]} Bb4 {[%emt 0:00:31]} 6. c3 {[%emt 0:00:17]} Be7 {[%emt 0:00:11]} 7. c4 {[%emt 0:00:18]} O-O {[%emt 0:01:01]} 8. Nc3 {[%emt 0:00:11]} Ng4 {[%emt 0:00:46]} 9. Qe2 {[%emt 0:04:41]} d5 {[%emt 0:01:00]} 10. Nxd5 {[%emt 0:29:29]} Bc5 {[%emt 0:19:50]} 11. Be3 {[%emt 0:04:56]} Nxe3 {[%emt 0:05:14]} 12. fxe3 {[%emt 0:00:07]} Qh4+ {[%emt 0:14:23]} 13. g3 {[%emt 0:00:28]} Qxe4 {[%emt 0:00:31]} 14. Bg2 {[%emt 0:00:05]} Qg6 {[%emt 0:00:58]} 15. Nf3 {[%emt 0:01:32]} Nb4 {[%emt 0:08:59]} 16. Nh4 {[%emt 0:16:23]} Qd6 {[%emt 0:04:51]} 17. O-O {[%emt 0:06:26]} Nxd5 {[%emt 0:04:11]} 18. Bxd5 {[%emt 0:00:22]} c6 {[%emt 0:02:40]} 19. Be4 {[%emt 0:01:41]} g6 {[%emt 0:04:08]} 20. Kh1 {[%emt 0:03:45]} Be6 {[%emt 0:02:52]} 21. Bd3 {[%emt 0:05:18]} Rad8 {[%emt 0:02:23]} 22. Rad1 {[%emt 0:00:42]} Qe5 {[%emt 0:00:40]} 23. Ng2 {[%emt 0:06:55]} h5 {[%emt 0:02:27]} 24. Qc2 {[%emt 0:02:32]} Bg4 {[%emt 0:02:50]} 25. Rb1 {[%emt 0:00:50]} Kg7 {[%emt 0:03:14]} 26. b4 {[%emt 0:02:19]} Be7 {[%emt 0:00:57]} 27. Rf4 {[%emt 0:04:35]} Rd7 {[%emt 0:08:25]} 28. Rbf1 {[%emt 0:02:05]} Bg5 {[%emt 0:01:57]} 29. Re4 {[%emt 0:00:12]} Qd6 {[%emt 0:01:05]} 30. Rd4 {[%emt 0:03:13]} Qxb4 {[%emt 0:01:00]} 31. Rxd7 {[%emt 0:00:08]} Bxd7 {[%emt 0:00:06]} 32. Rb1 {[%emt 0:00:09]} Qd6 {[%emt 0:02:15]} 33. Rxb7 {[%emt 0:00:10]} Bc8 {[%emt 0:01:57]} 34. c5 {[%emt 0:02:01]} Qd5 {[%emt 0:01:34]} 35. Rxa7 {[%emt 0:00:51]} Rd8 {[%emt 0:00:45]} 36. h4 {[%emt 0:01:57]} Bxe3 {[%emt 0:01:38]} 37. Kh2 {[%emt 0:01:10]} Qxd3 {[%emt 0:00:44]} 38. Qxd3 {[%emt 0:00:55]} Rxd3 {[%emt 0:00:07]} 39. Rc7 {[%emt 0:00:03]} Be6 {[%emt 0:01:01]} 40. Nxe3 {[%emt 0:00:00]} Rxe3 {[%emt 0:00:00]} 41. Rxc6 {[%emt 0:00:51]} Re2+ {[%emt 0:00:23]} 42. Kg1 {[%emt 0:02:44]} Rxa2 {[%emt 0:00:17]} 43. Rd6 {[%emt 0:00:42]} Rc2 {[%emt 0:00:09]} 44. c6 {[%emt 0:01:48]} Kf6 {[%emt 0:00:09]} 45. Rd3 {[%emt 0:00:09]} Rxc6 {[%emt 0:00:08]} 46. Kf2 {[%emt 0:00:22]} Rc2+ {[%emt 0:00:22]} 47. Ke3 {[%emt 0:00:24]} g5 {[%emt 0:00:10]} 48. hxg5+ {[%emt 0:00:32]} Kxg5 {[%emt 0:00:06]} 49. Rd8 {[%emt 0:00:33]} Bg4 {[%emt 0:00:30]} 50. Rg8+ {[%emt 0:01:10]} Kf5 {[%emt 0:00:27]} 51. Ra8 {[%emt 0:00:20]} Re2+ {[%emt 0:00:11]} 52. Kd3 {[%emt 0:00:04]} Rg2 {[%emt 0:00:09]} 53. Ra5+ {[%emt 0:00:10]} Kg6 {[%emt 0:00:01]} 54. Ra6+ {[%emt 0:00:25]} f6 {[%emt 0:00:01]} 55. Kd4 0-1

[Event "SRB-chT 1st League Women 2018"]
[Site "Zajecar"]
[Date "2018.09.09"]
[Round "10"]
[White "Matkovic, Simana"]
[Black "Miladinovic, Lena"]
[Result "1-0"]
[ECO "A45"]
[WhiteElo "1937"]
[BlackElo "2098"]
[Annotator "NA"]
[PlyCount "147"]
[EventDate "2018.08.31"]
[EventType "team-tourn"]
[EventCountry "SRB"]
[SourceTitle "playchess.com"]
[Source "ChessBase"]
[SourceQuality "1"]
[TimeControl "40/5400+30:1800+30"]

1. d4 {[%emt 0:00:00]} Nf6 {[%emt 0:00:00]} 2. Bf4 {[%emt 0:00:00]} c5 {[%emt 0:00:00]} 3. e3 {[%emt 0:00:02]} cxd4 {[%emt 0:00:07] A45: Trompowsky Attack} (3... e6 4. Nd2 d5 5. Ngf3 Nc6 6. c3 Be7 7. h3 Bd6 8. dxc5 Bxc5 9. Bd3 O-O 10. O-O Bd6 11. Bxd6 Qxd6 12. e4 Rd8 13. Bc2 dxe4 14. Nxe4 Qe7 15. Qe2 {1-0 (67) So,W (2778)-Caruana,F (2816) Paris 2018}) 4. exd4 {[%emt 0:00:12]} Qb6 {[%emt 0:00:11] LiveBook: 15 Games} 5. Nc3 {[%emt 0:01:21]} Nc6 {[%emt 0:00:18]} (5... a6 6. Rb1 d5 7. Bd3 Nc6 8. Nf3 Bg4 9. Be2 e6 10. Be3 Qa5 11. O-O {0-1 (55) Matkovic,S (1884)-Miladinovic,L (2186) Kragujevac 2015}) 6. d5 {[%emt 0:14:54]} e5 $146 {[%emt 0:00:16]} ({Predecessor:} 6... Nb4 7. a3 Na6 8. Rb1 d6 9. Nf3 g6 10. Bb5+ Bd7 11. Bxd7+ Nxd7 {0-1 (65) Palchun,G (2441)-Dzhumagaliev,Y (2400) Sochi 2017}) 7. dxe6 {[%emt 0:07:28]} dxe6 {[%emt 0:02:40]} 8. Qd2 {[%emt 0:11:49]} Bb4 {[%emt 0:05:20]} 9. Bd3 {[%emt 0:04:20]} O-O {[%emt 0:13:22]} 10. Nge2 {[%emt 0:04:29]} e5 {[%emt 0:07:00]} 11. Be3 {[%emt 0:02:17]} Qa5 {[%emt 0:05:59]} 12. O-O {[%emt 0:01:21]} e4 {[%emt 0:04:09]} 13. Bc4 {[%emt 0:01:33]} Ne5 {[%emt 0:07:20]} 14. Bb3 {[%emt 0:00:48]} Bh3 {[%emt 0:08:51]} 15. a3 {[%emt 0:03:16]} Be7 {[%emt 0:08:09]} 16. Nxe4 {[%emt 0:02:16]} (16. Nd5 $18 {ist der präzise Gewinnweg.} Qd8 17. Nxf6+ Bxf6 18. Qxd8 Rfxd8 19. gxh3) 16... Nf3+ {[%emt 0:08:23]} 17. gxf3 {[%emt 0:07:52]} Qf5 {[%emt 0:01:20]} 18. Nd4 {[%emt 0:05:15]} Qg6+ {[%emt 0:01:17]} 19. Ng3 {[%emt 0:00:17]} h5 {[%emt 0:05:53]} 20. c3 {[%emt 0:02:32]} Ne8 {[%emt 0:04:35]} 21. Qc2 {[%emt 0:04:03]} Qxc2 {[%emt 0:05:20]} 22. Bxc2 {[%emt 0:00:15]} Bxf1 {[%emt 0:00:14]} 23. Rxf1 {[%emt 0:00:14]} g6 {[%emt 0:00:28]} 24. Re1 {[%emt 0:02:07]} Bf6 {[%emt 0:01:43]} 25. Ne4 {[%emt 0:03:19]} Be5 {[%emt 0:02:01]} 26. f4 {[%emt 0:00:37]} Bg7 {[%emt 0:00:23]} 27. f5 {[%emt 0:01:16]} gxf5 {[%emt 0:03:31]} 28. Nxf5 {[%emt 0:00:35]} Kh8 {[%emt 0:00:34]} 29. Kh1 {[%emt 0:00:56]} Be5 {[%emt 0:02:18]} 30. f4 {[%emt 0:00:49]} Bg7 {[%emt 0:00:11]} 31. Rg1 {[%emt 0:00:24]} f6 {[%emt 0:02:01]} 32. Bb3 {[%emt 0:00:22]} b6 {[%emt 0:01:13]} 33. Bd4 {[%emt 0:02:59]} Rd8 {[%emt 0:00:41]} 34. Neg3 {[%emt 0:02:52]} h4 {[%emt 0:00:35]} 35. Nxh4 {[%emt 0:00:43]} Kh7 {[%emt 0:00:22]} 36. Nhf5 {[%emt 0:01:21]} Rd7 {[%emt 0:00:42]} 37. Nh5 {[%emt 0:01:41]} Kh8 {[%emt 0:00:25]} 38. Rg3 {[%emt 0:00:38]} Kh7 {[%emt 0:00:33]} 39. Nhxg7 {[%emt 0:03:19]} Nxg7 {[%emt 0:00:07]} 40. Nxg7 {[%emt 0:00:00]} Rxg7 {[%emt 0:00:00]} 41. Rxg7+ {[%emt 0:03:00]} Kxg7 {[%emt 0:00:14]} 42. f5 {[%emt 0:01:01]} Rh8 {[%emt 0:00:47]} 43. Kg2 {[%emt 0:00:16]} Rh4 {[%emt 0:00:14]} 44. Bd5 {[%emt 0:00:47]} Rf4 {[%emt 0:00:25]} 45. Be6 {[%emt 0:00:40]} Re4 {[%emt 0:00:40]} 46. Kf2 {[%emt 0:02:28]} Rh4 {[%emt 0:01:09]} 47. Ke3 {[%emt 0:02:03]} Rxh2 {[%emt 0:00:16]} 48. c4 {[%emt 0:00:18]} Rh4 {[%emt 0:04:50]} 49. Kd3 {[%emt 0:00:21]} Rg4 {[%emt 0:00:56]} 50. Bc3 {[%emt 0:00:16]} Rg1 {[%emt 0:03:29]} 51. Kc2 {[%emt 0:00:30]} Rg3 {[%emt 0:01:28]} 52. Kb3 {[%emt 0:00:08]} Kf8 {[%emt 0:00:55]} 53. Kb4 {[%emt 0:00:20]} Ke7 {[%emt 0:03:24]} 54. Kb5 {[%emt 0:00:17]} Kd6 {[%emt 0:01:54]} 55. Bxf6 {[%emt 0:00:24]} Rb3+ {[%emt 0:01:11]} 56. Ka6 {[%emt 0:00:32]} Kc6 {[%emt 0:00:38]} 57. Bd5+ {[%emt 0:02:06]} Kd6 {[%emt 0:00:48]} 58. Bc3 {[%emt 0:01:05]} b5 {[%emt 0:00:18]} 59. Bb4+ {[%emt 0:00:50]} Ke5 {[%emt 0:00:54]} 60. Be6 {[%emt 0:00:54]} (60. f6 $142 Kxf6 61. Bc3+ Ke7 62. cxb5 Rxb5 63. Kxb5 Kd6 64. Bg2 Ke6 65. Ka6) 60... bxc4 {[%emt 0:01:44]} 61. Bxc4 {[%emt 0:00:35]} (61. Bc3+ $142 Kd6 62. Kxa7 Kc6 63. f6 Kc7 64. f7 Rb7+ 65. Ka6 Rb6+ 66. Ka5) 61... Rh3 {[%emt 0:00:46]} 62. Be6 {[%emt 0:00:12]} Rh7 {[%emt 0:00:53]} 63. Bc3+ {[%emt 0:00:50]} Kd6 {[%emt 0:00:14]} 64. b3 {[%emt 0:05:05]} (64. Bb3 $142 Ke7 65. f6+ Kf8 66. Bb4+ Ke8 67. f7+ Rxf7 68. Bxf7+ Kxf7 69. Kxa7) 64... Rc7 {[%emt 0:02:36]} 65. Bd4 {[%emt 0:01:03]} Re7 {[%emt 0:01:52]} 66. Bxa7 {[%emt 0:00:21]} Kc6 {[%emt 0:00:10]} 67. b4 {[%emt 0:00:32]} Rh7 {[%emt 0:00:54]} 68. b5+ {[%emt 0:00:48]} Kd6 {[%emt 0:00:10]} 69. Kb6 {[%emt 0:01:23]} Rh4 {[%emt 0:00:24]} 70. Bb8+ {[%emt 0:00:31]} Ke7 {[%emt 0:00:05]} 71. Ka5 {[%emt 0:00:29]} Rh8 $18 {[%emt 0:00:37]} 72. Be5 {[%emt 0:00:16]} Ra8+ {[%emt 0:00:42]} 73. Kb4 {[%emt 0:00:06]} Rd8 {[%emt 0:00:49]} 74. b6 {[%emt 0:00:46]} 1-0

[Event "SRB-chT 1st League Women 2018"]
[Site "Zajecar"]
[Date "2018.09.09"]
[Round "10"]
[White "Stanimirovic, Marija"]
[Black "Sakotic, Ana"]
[Result "1-0"]
[ECO "E91"]
[WhiteElo "1901"]
[BlackElo "1706"]
[Annotator "NA"]
[PlyCount "89"]
[EventDate "2018.08.31"]
[EventType "team-tourn"]
[EventCountry "SRB"]
[SourceTitle "playchess.com"]
[Source "ChessBase"]
[SourceQuality "1"]
[TimeControl "40/5400+30:1800+30"]

1. c4 {[%emt 0:00:00]} Nf6 {[%emt 0:00:00]} 2. Nc3 {[%emt 0:00:00]} g6 {[%emt 0:00:00]} 3. Nf3 {[%emt 0:00:04]} Bg7 {[%emt 0:00:00]} 4. d4 {[%emt 0:03:40]} O-O {[%emt 0:00:20]} 5. e4 {[%emt 0:02:05]} d6 {[%emt 0:00:06]} 6. Be2 {[%emt 0:00:10]} Nbd7 {[%emt 0:00:07]} 7. O-O {[%emt 0:00:40]} e5 {[%emt 0:00:05]} 8. h3 {[%emt 0:02:34]} c6 {[%emt 0:03:41]} 9. Be3 {[%emt 0:11:17]} Qe7 {[%emt 0:03:50]} (9... exd4 $11 10. Nxd4 (10. Bxd4 Re8 $11) 10... Qe7) 10. dxe5 {[%emt 0:05:19]} dxe5 {[%emt 0:00:15]} 11. Qc2 {[%emt 0:00:58]} a5 {[%emt 0:09:01] LiveBook: 3 Games [#] E94: King's Indian: Classical: 6 Be2 e5 7 0-0: Various Black 7th moves} (11... Nh5 $11 {keeps the balance.}) 12. Na4 $1 {[%emt 0:14:18]} Nh5 {[%emt 0:13:02]} 13. c5 {[%emt 0:03:36]} Nf4 {[%emt 0:06:18] [#]} 14. Bc4 $146 {[%emt 0:02:07]} ({Predecessor:} 14. Rad1 f5 15. Bxf4 exf4 16. exf5 Rxf5 17. Bd3 Rh5 {1-0 (32) Zhou,J (2609)-Sasikiran,K (2720) Zaozhuang 2012}) 14... Ne6 {[%emt 0:04:26]} 15. Bb3 {[%emt 0:02:31]} Kh8 {[%emt 0:10:14]} 16. Qc4 {[%emt 0:03:04]} Nc7 {[%emt 0:02:51]} 17. Ng5 {[%emt 0:13:38]} Kg8 {[%emt 0:05:29]} 18. Rfd1 {[%emt 0:10:07]} Nb5 {[%emt 0:02:00]} 19. Rd2 {[%emt 0:03:31]} h6 {[%emt 0:01:34]} 20. Nf3 {[%emt 0:00:19]} Nf6 {[%emt 0:10:41]} 21. Qc2 {[%emt 0:06:17]} Nh5 {[%emt 0:11:44]} 22. Nb6 {[%emt 0:01:45]} Rb8 {[%emt 0:01:57]} 23. Rad1 {[%emt 0:01:39]} Nf6 {[%emt 0:02:19]} 24. Bc4 {[%emt 0:05:54]} Nc7 {[%emt 0:02:45]} 25. Ne1 {[%emt 0:00:46]} Be6 {[%emt 0:03:30]} 26. f3 {[%emt 0:01:03]} Bxc4 {[%emt 0:00:31]} 27. Qxc4 {[%emt 0:00:11]} Rfd8 {[%emt 0:00:23] [#]} 28. Qa4 {[%emt 0:00:37]} (28. Rxd8+ $1 $18 Rxd8 29. Rxd8+ Qxd8 30. Qd3) 28... Rxd2 {[%emt 0:02:28]} 29. Rxd2 {[%emt 0:00:12]} Na6 {[%emt 0:02:45]} 30. Qxa5 {[%emt 0:00:44]} Rd8 {[%emt 0:00:13]} 31. Rxd8+ {[%emt 0:02:44]} Qxd8 {[%emt 0:00:11]} 32. Qc3 {[%emt 0:00:31]} Qe7 {[%emt 0:00:33]} 33. b4 {[%emt 0:01:05]} Nd7 {[%emt 0:00:55]} 34. Nc4 {[%emt 0:00:18]} f6 {[%emt 0:01:10]} 35. Nd6 {[%emt 0:00:41]} Nf8 {[%emt 0:00:46]} 36. Qc4+ {[%emt 0:00:40]} Kh7 {[%emt 0:00:17]} 37. a4 {[%emt 0:00:24]} Ne6 {[%emt 0:01:02]} 38. b5 {[%emt 0:01:45]} cxb5 {[%emt 0:00:05]} 39. axb5 {[%emt 0:00:07]} Nb8 {[%emt 0:00:15]} 40. Qd5 {[%emt 0:00:00]} Nd8 {[%emt 0:00:00]} 41. Nd3 {[%emt 0:04:15]} Bf8 {[%emt 0:05:34]} 42. Nb2 {[%emt 0:05:50]} h5 {[%emt 0:07:26]} 43. Nbc4 {[%emt 0:00:39]} Kh8 {[%emt 0:02:48]} 44. Bd2 {[%emt 0:00:37]} Kh7 {[%emt 0:00:50]} 45. Ba5 $18 {[%emt 0:00:12]} 1-0

[Event "SRB-chT 1st League Women 2018"]
[Site "Zajecar"]
[Date "2018.09.09"]
[Round "10"]
[White "Stankovic, Marija"]
[Black "Ostojic, Katarina"]
[Result "0-1"]
[ECO "B53"]
[WhiteElo "1629"]
[BlackElo "2134"]
[Annotator "ChessBase"]
[PlyCount "90"]
[EventDate "2018.08.31"]
[EventType "team-tourn"]
[EventCountry "SRB"]
[SourceTitle "playchess.com"]
[Source "ChessBase"]
[SourceQuality "1"]
[TimeControl "40/5400+30:1800+30"]

1. e4 {[%emt 0:00:00]} c5 {[%emt 0:00:00]} 2. Nf3 {[%emt 0:00:00]} d6 {[%emt 0:00:19]} 3. d4 {[%emt 0:00:00]} cxd4 {[%emt 0:00:08]} 4. Qxd4 {[%emt 0:00:11]} Nf6 {[%emt 0:00:55]} 5. Nc3 {[%emt 0:01:01]} Nc6 {[%emt 0:00:56]} 6. Bb5 {[%emt 0:00:44]} Qa5 {[%emt 0:06:11]} 7. Bxc6+ {[%emt 0:10:11]} bxc6 {[%emt 0:03:01]} 8. O-O {[%emt 0:02:34]} e5 {[%emt 0:01:37]} 9. Qd1 {[%emt 0:06:41]} Ba6 {[%emt 0:05:20]} 10. Re1 {[%emt 0:00:21]} Be7 {[%emt 0:00:36]} 11. Nh4 {[%emt 0:08:05]} g6 {[%emt 0:13:14]} 12. Bh6 {[%emt 0:15:09]} Qb4 {[%emt 0:11:06]} 13. Qc1 {[%emt 0:14:33]} Ng4 {[%emt 0:12:01]} 14. Bg5 {[%emt 0:10:37]} Qb6 {[%emt 0:10:55]} 15. h3 {[%emt 0:13:02]} Qxf2+ {[%emt 0:03:57]} 16. Kh1 {[%emt 0:00:09]} h6 {[%emt 0:02:59]} 17. Bxe7 {[%emt 0:01:31]} Kxe7 {[%emt 0:00:20]} 18. Nf3 {[%emt 0:00:55]} Nf6 {[%emt 0:00:25]} 19. Qd2 {[%emt 0:01:42]} Qxd2 {[%emt 0:02:40]} 20. Nxd2 {[%emt 0:00:07]} Rab8 {[%emt 0:00:33]} 21. b3 {[%emt 0:01:23]} Nh5 {[%emt 0:02:42]} 22. Rad1 {[%emt 0:04:35]} Nf4 {[%emt 0:02:46]} 23. Kh2 {[%emt 0:00:52]} Ne6 {[%emt 0:01:31]} 24. Nf3 {[%emt 0:01:04]} Rbd8 {[%emt 0:01:15]} 25. a4 {[%emt 0:01:06]} Rhe8 {[%emt 0:02:02]} 26. Rd2 {[%emt 0:01:51]} Ng7 {[%emt 0:02:50]} 27. Red1 {[%emt 0:01:00]} g5 {[%emt 0:04:43]} 28. g4 {[%emt 0:01:03]} f6 {[%emt 0:00:56]} 29. Ng1 {[%emt 0:02:22]} h5 {[%emt 0:00:19]} 30. Nge2 {[%emt 0:01:00]} hxg4 {[%emt 0:00:14]} 31. hxg4 {[%emt 0:00:02]} Rh8+ {[%emt 0:00:14]} 32. Kg3 {[%emt 0:00:38]} Rh4 {[%emt 0:00:15]} 33. b4 {[%emt 0:01:14]} Bc8 {[%emt 0:00:53]} 34. Kf2 {[%emt 0:00:33]} Rh2+ {[%emt 0:01:16]} 35. Kf3 {[%emt 0:00:29]} Ne6 {[%emt 0:03:35]} 36. Ng3 {[%emt 0:00:25]} Nd4+ {[%emt 0:00:36]} 37. Ke3 {[%emt 0:00:06]} Nxc2+ {[%emt 0:00:41]} 38. Kf3 {[%emt 0:00:42]} Nd4+ {[%emt 0:00:58]} 39. Ke3 {[%emt 0:00:05]} Rh3 {[%emt 0:00:42]} 40. Rg2 {[%emt 0:00:00]} Bxg4 {[%emt 0:00:00]} 41. Rc1 {[%emt 0:02:37]} f5 {[%emt 0:08:16]} 42. exf5 {[%emt 0:01:54]} Nxf5+ {[%emt 0:00:07]} 43. Kf2 {[%emt 0:00:23]} Nh4 {[%emt 0:00:22]} 44. Rgg1 {[%emt 0:00:24]} Rf8+ {[%emt 0:00:10]} 45. Ke1 {[%emt 0:00:15]} Nf3+ {[%emt 0:00:10]} 0-1